bitfinex/quotes_BTCUSD_20210402
["timestamp","ask_amount","ask_price","bid_price","bid_amount"]
[1617326189297,1.312,58772.0,58763.0,0.053]
[1617326189496,0.052,58772.0,58765.0,0.04]
[1617326189701,1.6611,58782.0,58767.0,0.04]
[1617326189895,0.002,58780.0,58769.0,0.04]
[1617326190098,0.002,58780.0,58771.0,0.04]
[1617326190296,0.002,58780.0,58771.0,0.0046]
[1617326190494,0.002,58780.0,58771.0,0.0446]
[1617326190743,0.002,58780.0,58774.0,0.04]
[1617326190946,1.6611,58782.0,58775.0,0.053]
[1617326191145,1.6611,58782.0,58777.0,0.04]
[1617326191344,1.6611,58782.0,58777.0,0.1234814]
[1617326191544,0.22513,58781.0,58779.0,0.05849202]
[1617326191749,1.6611,58782.0,58778.0,0.14198468]
[1617326191944,1.6611,58782.0,58780.0,0.08349064]
[1617326192144,1.6611,58782.0,58781.0,0.013]
[1617326192345,1.88623,58782.0,58781.0,0.013]
[1617326192545,1.88623,58782.0,58781.0,0.09646557]
[1617326192747,2.349414,58782.0,58781.0,0.013]
[1617326193145,2.299414,58782.0,58781.0,0.09650452]
[1617326193354,2.02,58781.0,58776.0,0.05850412]
[1617326193558,2.02,58781.0,58775.0,0.05853948]
[1617326193559,2.186,58777.0,58775.0,0.05853948]
[1617326193754,2.40513,58776.0,58775.0,0.05853948]
[1617326194156,2.40813,58775.0,58774.0,0.05854369]
[1617326194358,2.70813,58775.0,58773.0,0.05858367]
[1617326194555,2.09921439,58774.0,58772.0,0.05860219]
[1617326194754,2.24513,58773.0,58772.0,0.05860219]
[1617326195155,2.24513,58773.0,58771.0,0.05859152]
[1617326195360,2.2542699,58772.0,58771.0,0.05859152]
[1617326195557,2.4793999,58772.0,58771.0,0.05859152]
[1617326195754,2.4793999,58772.0,58770.0,0.05861483]
[1617326195965,2.225,58772.0,58771.0,0.1421261]
[1617326196167,2.29513,58772.0,58771.0,0.08351255]
[1617326196370,2.29513,58772.0,58767.0,0.15677871]
[1617326196371,2.229,58772.0,58767.0,0.15677871]
[1617326196571,2.275249,58768.0,58767.0,0.15677871]
[1617326196766,2.500379,58768.0,58767.0,0.15677871]
[1617326196968,2.550379,58768.0,58767.0,0.15677871]
[1617326197167,2.712379,58768.0,58767.0,0.15677871]
[1617326197565,2.712379,58768.0,58750.0,0.04156137]
[1617326197566,2.712379,58768.0,58766.0,0.15695741]
[1617326197766,2.30631088,58767.0,58760.0,0.1571634]
[1617326197966,2.35631088,58767.0,58760.0,0.1571634]
[1617326198167,0.40655375,58764.0,58760.0,0.1571634]
[1617326198367,0.305263,58764.0,58761.0,0.03915257]
[1617326198594,1.15,58762.0,58761.0,0.03915257]
[1617326199194,0.05,58762.0,58761.0,0.03915257]
[1617326199598,0.33631088,58765.0,58761.0,0.03915257]
[1617326199797,0.33631088,58765.0,58756.0,0.14138856]
[1617326199995,0.33631088,58765.0,58762.0,0.0391181]
[1617326200396,0.28631088,58765.0,58762.0,0.0391181]
[1617326200596,0.162,58768.0,58764.0,0.03908776]
[1617326200796,0.162,58768.0,58765.0,0.03908538]
[1617326201425,0.22513,58767.0,58765.0,0.03908538]
[1617326201625,0.25724,58769.0,58764.0,0.0390819]
[1617326201827,0.25524,58769.0,58765.0,0.0390782]
[1617326203629,0.28631088,58771.0,58766.0,0.0390363]
[1617326204061,0.33631088,58771.0,58766.0,0.0390363]
[1617326204861,0.33631088,58771.0,58767.0,0.03901245]
[1617326205060,0.33631088,58771.0,58768.0,0.08247436]
[1617326205263,0.28631088,58771.0,58767.0,0.03900688]
[1617326205462,2.181,58768.0,58766.0,0.03900523]
[1617326205659,2.45613,58768.0,58766.0,0.03900523]
[1617326205962,2.45813,58768.0,58763.0,0.03897878]
[1617326206160,2.233,58768.0,58763.0,0.03897878]
[1617326206572,0.213,58768.0,58763.0,0.03897878]
[1617326206774,0.255231,58771.0,58763.0,0.03897878]
[1617326206974,0.305231,58771.0,58763.0,0.03897878]
[1617326207377,0.05,58771.0,58763.0,0.03897878]
[1617326207576,0.002,58773.0,58763.0,0.04317878]
[1617326207974,0.002,58773.0,58764.0,0.12135133]
[1617326208176,0.002,58773.0,58764.0,0.08236211]
[1617326208375,0.002,58773.0,58765.0,0.08235918]
[1617326208576,0.002,58773.0,58764.0,0.03898772]
[1617326208577,0.161,58767.0,58764.0,0.03898772]
[1617326208778,0.211,58767.0,58764.0,0.03898772]
[1617326209201,0.211,58767.0,58765.0,0.389192]
[1617326209399,0.05,58767.0,58765.0,0.389192]
[1617326209600,0.002,58768.0,58765.0,0.389192]
[1617326209800,0.255237,58771.0,58765.0,0.389192]
[1617326210004,0.305237,58771.0,58765.0,0.14139415]
[1617326210199,0.305237,58771.0,58768.0,0.03406537]
[1617326211001,0.305237,58771.0,58763.0,0.05857087]
[1617326211402,0.305237,58771.0,58769.0,0.08241279]
[1617326211604,0.305237,58771.0,58763.0,0.05857087]
[1617326212224,0.166,58770.0,58763.0,0.05857087]
[1617326212627,0.255237,58769.0,58763.0,0.05857087]
[1617326212826,0.245237,58769.0,58763.0,0.05857087]
[1617326213225,0.457237,58769.0,58763.0,0.05857087]
[1617326213425,0.295237,58769.0,58763.0,0.05857087]
[1617326213627,0.43748,58769.0,58763.0,0.05857087]
[1617326213828,0.255248,58767.0,58763.0,0.05857087]
[1617326214026,0.22513,58766.0,58763.0,0.05857087]
[1617326214226,0.305248,58767.0,58763.0,0.05857087]
[1617326215654,0.255248,58767.0,58763.0,0.05857087]
[1617326216457,0.255248,58767.0,58763.0,0.05357087]
[1617326216856,0.255248,58767.0,58764.0,0.08219183]
[1617326217084,0.255248,58767.0,58763.0,0.05357087]
[1617326217284,0.255248,58767.0,58760.0,0.15644838]
[1617326217285,0.28498264,58766.0,58760.0,0.15644838]
[1617326217490,0.165,58761.0,58758.0,0.15652515]
[1617326217686,2.168,58759.0,58758.0,0.15652515]
[1617326217973,2.44313,58759.0,58758.0,0.08246103]
[1617326218167,2.44313,58759.0,58753.0,0.15669188]
[1617326218367,0.20704657,58758.0,58753.0,0.15669188]
[1617326218565,0.20704657,58758.0,58752.0,0.15676612]
[1617326218969,2.034,58753.0,58752.0,0.15676612]
[1617326219172,2.37546,58753.0,58752.0,0.15676612]
[1617326219371,2.37546,58753.0,58751.0,0.15683041]
[1617326219568,0.22513,58752.0,58751.0,0.15683041]
[1617326219768,0.50546,58753.0,58751.0,0.15683041]
[1617326219969,0.34146,58753.0,58751.0,0.15683041]
[1617326220169,0.255301,58752.0,58751.0,0.15683041]
[1617326220373,0.255301,58752.0,58749.0,0.15675754]
[1617326220769,0.136,58750.0,58749.0,0.15675754]
[1617326220968,0.255301,58752.0,58748.0,0.15668117]
[1617326221368,0.255301,58752.0,58749.0,0.08245763]
[1617326221567,0.255301,58752.0,58748.0,0.15168117]
[1617326222993,0.255301,58752.0,58745.0,0.08240448]
[1617326223195,0.002,58755.0,58749.0,0.08243402]
[1617326223395,0.255282,58756.0,58746.0,0.08243739]
[1617326223594,0.255282,58756.0,58748.0,0.08247121]
[1617326223796,0.002,58760.0,58748.0,0.08247121]
[1617326223997,0.002,58760.0,58748.0,1.07263246]
[1617326224394,0.002,58760.0,58749.0,0.99016125]
[1617326224596,0.340394,58761.0,58751.0,0.0046]
[1617326224795,0.255269,58759.0,58751.0,0.0446]
[1617326225012,0.255269,58759.0,58752.0,0.12256802]
[1617326225212,0.255269,58759.0,58754.0,0.04]
[1617326225414,0.255269,58759.0,58753.0,0.08257263]
[1617326225415,0.002,58764.0,58755.0,0.04]
[1617326225814,0.002,58764.0,58756.0,0.08274871]
[1617326226011,1.7485,58767.0,58756.0,0.08274871]
[1617326226414,2.003733,58767.0,58756.0,0.08274871]
[1617326227633,0.22513,58765.0,58756.0,0.08274871]
[1617326228033,0.28379072,58764.0,58756.0,0.08274871]
[1617326228634,0.22513,58763.0,58756.0,0.08274871]
[1617326228838,0.3,58763.0,58756.0,0.08274871]
[1617326229236,0.302,58763.0,58751.0,0.08274925]
[1617326229434,0.302,58763.0,58753.0,0.24]
[1617326229435,0.55726,58763.0,58753.0,0.24]
[1617326229635,0.55726,58763.0,58753.0,0.32276077]
[1617326229836,0.55726,58763.0,58754.0,0.08276301]
[1617326230858,0.55726,58763.0,58756.0,0.24212999]
[1617326231062,0.55726,58763.0,58757.0,0.08274643]
[1617326231259,0.25726,58763.0,58757.0,0.08274643]
[1617326232459,0.25726,58763.0,58756.0,0.24212999]
[1617326232910,0.25726,58763.0,58757.0,0.08278206]
[1617326233505,0.002,58763.0,58757.0,0.08278206]
[1617326233705,0.3,58765.0,58757.0,0.08278206]
[1617326234105,0.9485,58766.0,58757.0,0.08278206]
[1617326234904,1.23229072,58766.0,58757.0,0.08278206]
[1617326235105,0.9485,58766.0,58757.0,0.08278206]
[1617326235910,0.28379072,58765.0,58757.0,0.08278206]
[1617326236112,0.22513,58765.0,58757.0,0.08278206]
[1617326236910,0.9485,58766.0,58757.0,0.08278206]
[1617326237311,0.255256,58763.0,58757.0,0.08278206]
[1617326237512,0.164,58761.0,58757.0,0.08278206]
[1617326237714,0.05,58763.0,58757.0,0.08278206]
[1617326237911,0.05,58761.0,58757.0,0.08278206]
[1617326238148,0.05,58763.0,58751.0,0.08279424]
[1617326238348,0.052,58763.0,58758.0,0.08279579]
[1617326238548,0.002,58763.0,58752.0,0.08276463]
[1617326238748,0.255269,58760.0,58759.0,0.08278495]
[1617326238951,0.305269,58760.0,58753.0,0.08278782]
[1617326240149,0.305269,58760.0,58753.0,0.22418197]
[1617326240150,0.255269,58760.0,58753.0,0.22418197]
[1617326240549,0.255269,58760.0,58754.0,0.08287906]
[1617326241371,0.255269,58760.0,58752.0,0.08288561]
[1617326241576,0.255269,58760.0,58753.0,0.225]
[1617326241771,0.255269,58760.0,58754.0,0.08287168]
[1617326241972,0.255269,58760.0,58755.0,0.5]
[1617326242372,0.255269,58760.0,58756.0,0.08288113]
[1617326243176,0.162,58758.0,58756.0,0.08288113]
[1617326243583,0.255269,58760.0,58756.0,0.08288113]
[1617326244584,0.255269,58760.0,58756.0,0.22427528]
[1617326244784,0.255269,58760.0,58757.0,0.08285105]
[1617326245786,0.255269,58760.0,58750.0,0.08286423]
[1617326246014,0.255269,58760.0,58758.0,0.08286021]
[1617326246214,0.255269,58760.0,58752.0,0.26785529]
[1617326246412,0.255269,58760.0,58752.0,0.08285529]
[1617326246612,0.255269,58760.0,58753.0,0.08285749]
[1617326248024,0.255269,58760.0,58754.0,0.54]
[1617326248216,0.002,58763.0,58754.0,0.5]
[1617326248417,0.255251,58765.0,58755.0,0.08282262]
[1617326249039,0.255251,58765.0,58755.0,0.22421677]
[1617326249441,0.255251,58765.0,58756.0,0.27285247]
[1617326249638,0.255251,58765.0,58757.0,0.08285012]
[1617326250039,0.9485,58766.0,58757.0,0.08285012]
[1617326250638,0.22513,58765.0,58757.0,0.08285012]
[1617326250838,0.9485,58766.0,58756.0,0.0829435]
[1617326251041,0.255257,58763.0,58758.0,0.08297861]
[1617326251263,0.255257,58763.0,58756.0,0.08299635]
[1617326251663,0.255257,58763.0,58759.0,0.08300022]
[1617326251862,0.255257,58763.0,58755.0,0.14139415]
[1617326251863,0.255257,58763.0,58756.0,0.08300463]
[1617326252263,0.255257,58763.0,58755.0,0.08300455]
[1617326252464,0.255257,58763.0,58756.0,0.5]
[1617326252863,0.255257,58763.0,58757.0,0.08300296]
[1617326254894,0.255257,58763.0,58756.0,0.08301447]
[1617326255096,0.22513,58762.0,58756.0,0.08301447]
[1617326255296,0.22513,58762.0,58750.0,0.08301534]
[1617326255498,0.002,58763.0,58757.0,0.08301937]
[1617326255695,0.22513,58762.0,58753.0,0.08301837]
[1617326255895,0.002,58763.0,58753.0,0.08301837]
[1617326256094,0.002,58763.0,58753.0,0.22441252]
[1617326256294,0.002,58763.0,58754.0,0.08301583]
[1617326256515,0.002,58763.0,58755.0,0.5]
[1617326256716,0.255274,58759.0,58755.0,0.5]
[1617326257114,0.255274,58759.0,58756.0,0.08305126]
[1617326257716,0.22513,58758.0,58756.0,0.08305126]
[1617326257917,0.255274,58759.0,58756.0,0.08305126]
[1617326258518,0.255274,58759.0,58749.0,0.08309329]
[1617326258718,0.255274,58759.0,58751.0,0.5]
[1617326259134,0.255274,58759.0,58752.0,0.08307416]
[1617326260335,0.255274,58759.0,58752.0,0.22446831]
[1617326260739,0.255274,58759.0,58753.0,0.08305088]
[1617326261338,0.255274,58759.0,58752.0,0.08301967]
[1617326261539,0.255274,58759.0,58753.0,0.5]
[1617326261987,0.255274,58759.0,58754.0,0.18]
[1617326262188,0.255274,58759.0,58754.0,0.26302144]
[1617326262391,0.255274,58759.0,58755.0,0.08301315]
[1617326263024,0.255274,58759.0,58754.0,0.08301562]
[1617326263222,0.255274,58759.0,58756.0,0.08303216]
[1617326263422,0.36706833,58759.0,58754.0,0.08303625]
[1617326263623,0.20206833,58759.0,58754.0,0.08303625]
[1617326264623,0.20206833,58759.0,58755.0,0.00141954]
[1617326265025,0.20206833,58759.0,58756.0,0.08306734]
[1617326265229,1.4,58758.0,58741.0,0.99016125]
[1617326265425,1.4,58758.0,58742.0,0.145]
[1617326265631,1.4,58758.0,58743.0,0.99016125]
[1617326265827,0.77,58758.0,58743.0,0.99016125]
[1617326266027,0.77,58758.0,58748.0,0.255256]
[1617326266225,0.77,58758.0,58748.0,0.305256]
[1617326266625,0.77,58758.0,58748.0,0.05]
[1617326266826,0.77,58758.0,58744.0,0.24]
[1617326267026,0.77,58758.0,58745.0,0.29494245]
[1617326267225,0.77,58758.0,58745.0,0.42575091]
[1617326267425,0.77,58758.0,58745.0,0.29494245]
[1617326267626,0.255269,58757.0,58745.0,0.29494245]
[1617326267830,0.255269,58757.0,58746.0,0.235]
[1617326268029,0.255269,58757.0,58747.0,0.99016125]
[1617326268229,0.255269,58757.0,58748.0,0.389192]
[1617326268427,0.255269,58757.0,58748.0,1.37935325]
[1617326268631,0.00303724,58763.0,58750.0,0.158]
[1617326268830,0.34037,58764.0,58753.0,0.36]
[1617326269032,0.00303724,58763.0,58753.0,0.36]
[1617326269229,0.00303724,58763.0,58748.0,0.05]
[1617326269431,0.00303724,58763.0,58746.0,0.002]
[1617326269643,0.255265,58757.0,58746.0,0.257256]
[1617326270643,0.255265,58757.0,58746.0,0.002]
[1617326270845,0.255265,58757.0,58747.0,0.13209081]
[1617326273271,0.250265,58757.0,58747.0,0.13209081]
[1617326273671,0.250265,58757.0,58745.0,0.305265]
[1617326274471,0.28830818,58756.0,58745.0,0.05]
[1617326274675,0.155,58752.0,58739.0,0.172]
[1617326274895,0.16,58746.0,58739.0,0.17]
[1617326275092,0.28830818,58745.0,58739.0,0.17]
[1617326275297,0.22513,58744.0,58739.0,0.17]
[1617326275492,0.22513,58743.0,58724.0,0.13026401]
[1617326275696,0.22513,58743.0,58723.0,0.169]
[1617326275697,0.255342,58740.0,58723.0,0.169]
[1617326275895,0.28830818,58739.0,58723.0,1.15916125]
[1617326276091,0.28830818,58739.0,58729.0,0.30095603]
[1617326276890,0.255356,58736.0,58729.0,0.30095603]
[1617326277743,0.255356,58736.0,58726.0,0.05039806]
[1617326278367,0.255356,58736.0,58729.0,0.26784879]
[1617326278763,0.22513,58735.0,58729.0,0.26784879]
[1617326279178,0.3,58734.0,58729.0,0.26784879]
[1617326279371,2.167,58730.0,58729.0,0.26784879]
[1617326279566,2.39213,58730.0,58729.0,0.26784879]
[1617326279767,2.39213,58730.0,58717.0,0.00187908]
[1617326279966,0.28830818,58729.0,58717.0,0.00187908]
[1617326280165,2.014,58730.0,58717.0,0.00187908]
[1617326280366,0.004,58730.0,58729.0,0.26189345]
[1617326280565,0.22513,58730.0,58729.0,0.26189345]
[1617326281165,0.45,58730.0,58729.0,0.26189345]
[1617326281566,0.67513,58730.0,58729.0,0.26189345]
[1617326282367,0.22513,58730.0,58729.0,0.26189345]
[1617326282574,0.58983724,58739.0,58729.0,0.26189345]
[1617326282575,0.58983724,58739.0,58729.0,1.42190515]
[1617326282773,2.22844659,58746.0,58729.0,1.42190515]
[1617326282774,0.00303724,58745.0,58731.0,0.709192]
[1617326282973,0.00303724,58750.0,58738.0,0.09757352]
[1617326283173,0.22513,58750.0,58744.0,0.35385206]
[1617326283372,0.22513,58750.0,58746.0,0.00197045]
[1617326283576,0.22513,58750.0,58749.0,0.00196922]
[1617326284171,0.4693,58757.0,58749.0,0.7]
[1617326284372,0.22513,58757.0,58749.0,0.82184302]
[1617326284570,0.5457,58765.0,58755.0,0.0019664]
[1617326284771,0.22513,58763.0,58755.0,0.0019664]
[1617326285171,0.22513,58758.0,58756.0,0.00196628]
[1617326285395,0.255268,58762.0,58757.0,0.11622388]
[1617326285596,1.17513,58758.0,58757.0,0.11622388]
[1617326285796,1.17513,58758.0,58757.0,0.42436388]
[1617326287395,0.22513,58758.0,58757.0,0.42436388]
[1617326288419,0.22513,58758.0,58757.0,0.47436388]
[1617326288623,0.5457,58765.0,58757.0,0.55645388]
[1617326289022,0.5457,58765.0,58764.0,2.01196539]
[1617326289224,0.0004,58783.0,58764.0,2.36]
[1617326289422,0.0004,58783.0,58773.0,0.15398693]
[1617326289623,0.22513,58779.0,58773.0,0.42932693]
[1617326289821,0.22513,58778.0,58773.0,0.42932693]
[1617326291059,0.22513,58778.0,58774.0,0.00196176]
[1617326291255,0.22513,58778.0,58773.0,0.43128883]
[1617326291458,0.22513,58776.0,58775.0,0.012]
[1617326293080,0.22513,58776.0,58775.0,0.01396131]
[1617326293486,0.9979,58785.0,58775.0,0.012]
[1617326293487,0.22513,58784.0,58775.0,0.012]
[1617326293684,0.9979,58785.0,58777.0,0.00196171]
[1617326293685,0.9929,58785.0,58777.0,0.00196171]
[1617326293883,0.0004,58786.0,58777.0,0.00196171]
[1617326294294,0.0004,58786.0,58779.0,0.159]
[1617326294485,0.0004,58786.0,58781.0,0.00196081]
[1617326294686,0.0004,58786.0,58785.0,2.01195926]
[1617326294883,0.0004,58786.0,58785.0,2.03795926]
[1617326295084,0.0004,58786.0,58785.0,2.725192]
[1617326295281,0.0004,58786.0,58785.0,3.425192]
[1617326295482,0.0004,58786.0,58785.0,1.115192]
[1617326295682,0.0004,58786.0,58785.0,0.389192]
[1617326295919,0.0004,58786.0,58777.0,0.00562832]
[1617326296115,0.0004,58786.0,58785.0,0.00196108]
[1617326296717,0.22553,58786.0,58785.0,0.02796108]
[1617326296917,0.22553,58786.0,58785.0,0.036]
[1617326299327,0.22553,58786.0,58777.0,0.00162832]
[1617326299525,0.0004,58786.0,58777.0,0.00162832]
[1617326299724,0.0004,58786.0,58778.0,0.16]
[1617326299924,0.0004,58786.0,58778.0,0.17]
[1617326300126,0.0004,58786.0,58778.0,0.22]
[1617326300929,0.0004,58786.0,58779.0,0.389192]
[1617326301551,0.0004,58786.0,58780.0,0.025]
[1617326301752,0.0024,58790.0,58781.0,0.389192]
[1617326301954,0.0002,58791.0,58783.0,0.389192]
[1617326302153,0.0002,58791.0,58784.0,0.025]
[1617326302754,0.22513,58790.0,58784.0,0.035]
[1617326306305,0.22513,58790.0,58780.0,0.004]
[1617326306502,0.0002,58791.0,58780.0,0.004]
[1617326306701,0.22513,58790.0,58781.0,0.026]
[1617326306901,0.22513,58790.0,58781.0,0.036]
[1617326307303,0.0002,58791.0,58781.0,0.036]
[1617326307502,0.22513,58790.0,58781.0,0.036]
[1617326308742,0.0002,58791.0,58781.0,0.036]
[1617326308935,0.22513,58790.0,58781.0,0.036]
[1617326309741,0.22513,58790.0,58775.0,0.004]
[1617326309943,0.002,58786.0,58773.0,0.255124]
[1617326310343,0.002,58786.0,58771.0,0.345]
[1617326310541,0.00303724,58785.0,58764.0,0.23703336]
[1617326310741,0.00303724,58785.0,58775.0,0.09909996]
[1617326310941,0.002,58786.0,58775.0,0.09909996]
[1617326311340,0.22513,58785.0,58775.0,0.09909996]
[1617326311553,0.81619424,58785.0,58775.0,0.09909996]
[1617326311753,0.161,58780.0,58765.0,0.10401226]
[1617326311953,0.3023494,58779.0,58765.0,0.10401226]
[1617326312151,0.22513,58778.0,58765.0,0.10401226]
[1617326312357,0.00303724,58777.0,58765.0,0.10401226]
[1617326312555,0.22513,58776.0,58765.0,0.10401226]
[1617326312753,0.480345,58776.0,58765.0,0.10401226]
[1617326312953,0.00303724,58775.0,58765.0,0.10401226]
[1617326313154,0.22513,58774.0,58755.0,0.12318153]
[1617326313353,0.29931216,58773.0,58756.0,0.99016125]
[1617326313556,0.65890216,58773.0,58757.0,0.554192]
[1617326313756,0.255222,58769.0,58755.0,0.12718153]
[1617326313956,0.16,58767.0,58755.0,0.12318153]
[1617326314179,0.29931216,58766.0,58755.0,0.12318153]
[1617326314380,0.3043494,58772.0,58755.0,0.12318153]
[1617326314581,0.22513,58771.0,58755.0,0.12318153]
[1617326314781,0.00303724,58770.0,58755.0,0.12318153]
[1617326314983,0.255226,58768.0,58755.0,0.12318153]
[1617326315582,0.255226,58768.0,58758.0,0.15856993]
[1617326315785,0.255226,58768.0,58759.0,0.34856764]
[1617326315981,0.255226,58768.0,58759.0,0.15856764]
[1617326316187,0.255226,58768.0,58760.0,0.23127957]
[1617326316584,0.255226,58768.0,58760.0,0.15852908]
[1617326317603,0.52444216,58767.0,58760.0,0.15852908]
[1617326317998,0.52444216,58767.0,58758.0,0.15855697]
[1617326318199,0.52444216,58767.0,58761.0,0.07268162]
[1617326318403,0.52444216,58767.0,58759.0,0.07267321]
[1617326318797,0.52444216,58767.0,58757.0,0.15859419]
[1617326318999,0.52444216,58767.0,58755.0,0.0726759]
[1617326319199,0.52444216,58767.0,58758.0,0.07235182]
[1617326319427,0.52444216,58767.0,58756.0,0.07235234]
[1617326319828,0.29931216,58767.0,58753.0,0.165]
[1617326320031,0.3023494,58774.0,58758.0,0.389192]
[1617326320233,0.29931216,58774.0,58760.0,0.389192]
[1617326320429,0.22353,58773.0,58766.0,0.14164845]
[1617326321031,0.22353,58773.0,58757.0,0.04]
[1617326321228,0.22353,58773.0,58756.0,0.04]
[1617326321229,0.00303724,58772.0,58756.0,0.04]
[1617326321427,0.00303724,58772.0,58755.0,0.04]
[1617326321628,0.00303724,58773.0,58757.0,0.04]
[1617326321828,0.00303724,58773.0,58758.0,0.04]
[1617326322050,0.255219,58771.0,58758.0,0.07236928]
[1617326322251,0.223514,58770.0,58758.0,0.07236928]
[1617326322452,0.255219,58771.0,58755.0,0.11238566]
[1617326322651,0.00303724,58773.0,58757.0,0.04]
[1617326322853,0.00303724,58773.0,58758.0,0.04]
[1617326323050,0.00303724,58773.0,58758.0,0.11239378]
[1617326323272,0.255221,58771.0,58759.0,0.11239319]
[1617326323878,0.255221,58771.0,58760.0,0.07238418]
[1617326324273,0.255221,58771.0,58759.0,0.07238133]
[1617326324472,0.255221,58771.0,58761.0,0.072381]
[1617326324674,0.255221,58771.0,58760.0,0.07238261]
[1617326325076,0.255221,58771.0,58759.0,0.07239893]
[1617326325278,0.263514,58770.0,58759.0,0.07239893]
[1617326325481,0.263514,58770.0,58756.0,0.07239247]
[1617326325482,0.223514,58767.0,58756.0,0.07239247]
[1617326325681,0.155,58760.0,58750.0,0.168]
[1617326325880,0.29931216,58759.0,58743.0,0.04]
[1617326326080,0.29931216,58759.0,58742.0,0.168]
[1617326326280,0.30303724,58758.0,58744.0,0.07245027]
[1617326326479,0.30303724,58758.0,58741.0,0.00535775]
[1617326326480,0.156,58753.0,58743.0,0.07247214]
[1617326326681,0.255323,58749.0,58743.0,0.07247214]
[1617326326879,0.223514,58748.0,58742.0,0.07241696]
[1617326328610,0.223514,58748.0,58746.0,0.10674657]
[1617326330836,0.223514,58748.0,58746.0,1.09690782]
[1617326331037,0.223514,58758.0,58746.0,0.10674657]
[1617326331234,0.223514,58758.0,58747.0,0.032]
[1617326331634,0.223514,58756.0,58747.0,0.032]
[1617326333250,0.29931216,58755.0,58747.0,0.032]
[1617326333449,0.223514,58754.0,58747.0,0.032]
[1617326334449,0.163,58752.0,58747.0,0.032]
[1617326334649,0.223514,58751.0,58747.0,0.032]
[1617326336078,0.223514,58751.0,58747.0,0.01]
[1617326336280,0.223514,58751.0,58748.0,0.021]
[1617326336679,1.083514,58749.0,58748.0,0.021]
[1617326338312,1.083514,58749.0,58748.0,0.08039785]
[1617326338511,1.663514,58749.0,58748.0,0.08039785]
[1617326338709,1.663514,58749.0,58748.0,0.15326993]
[1617326338907,1.663514,58749.0,58748.0,0.08039785]
[1617326339111,1.918827,58749.0,58748.0,0.09389509]
[1617326340934,1.338827,58749.0,58748.0,0.09389509]
[1617326342134,1.638827,58749.0,58748.0,0.09389509]
[1617326342737,1.638827,58749.0,58748.0,0.15336125]
[1617326343153,1.338827,58749.0,58748.0,0.15336125]
[1617326343353,2.278827,58749.0,58748.0,0.15336125]
[1617326343758,1.338827,58749.0,58748.0,0.15336125]
[1617326344357,1.858827,58749.0,58748.0,0.15336125]
[1617326344758,1.338827,58749.0,58748.0,0.15336125]
[1617326346184,1.083514,58749.0,58748.0,0.13236125]
[1617326346386,0.00303724,58761.0,58748.0,1.4791767]
[1617326346586,0.00303724,58764.0,58749.0,0.025]
[1617326346783,0.00303724,58764.0,58751.0,0.05946172]
[1617326346982,0.3023494,58764.0,58751.0,0.05946172]
[1617326347184,0.29931216,58764.0,58752.0,0.08446371]
[1617326347383,0.255273,58760.0,58752.0,0.09797448]
[1617326347585,0.223514,58756.0,58753.0,0.08298589]
[1617326347784,1.433514,58754.0,58753.0,0.01]
[1617326348406,1.433514,58754.0,58753.0,0.034]
[1617326348606,0.6582258,58749.0,58748.0,0.16681545]
[1617326348808,0.8817398,58749.0,58748.0,0.16681545]
[1617326349009,0.8817398,58749.0,58748.0,0.19581545]
[1617326349609,0.8817398,58749.0,58748.0,0.18581545]
[1617326350511,0.8817398,58749.0,58748.0,0.19581545]
[1617326350713,0.8817398,58749.0,58748.0,0.029]
[1617326350930,0.8817398,58749.0,58748.0,0.019]
[1617326351332,0.8817398,58749.0,58745.0,0.019]
[1617326351534,0.223514,58748.0,58745.0,0.019]
[1617326351931,0.223514,58748.0,58745.0,0.029]
[1617326353455,0.223514,58748.0,58745.0,0.18774851]
[1617326354258,0.223514,58748.0,58747.0,0.11741821]
[1617326354458,0.6582258,58749.0,58747.0,0.13641821]
[1617326354858,0.6582258,58749.0,58747.0,0.29512142]
[1617326355458,0.6582258,58749.0,58748.0,0.534299]
[1617326356062,0.6582258,58749.0,58748.0,0.612299]
[1617326356286,0.6582258,58749.0,58748.0,1.022299]
[1617326357481,0.6582258,58749.0,58748.0,0.612299]
[1617326357681,0.6582258,58749.0,58748.0,0.642299]
[1617326358080,0.6582258,58749.0,58748.0,0.80049625]
[1617326358482,0.6582258,58749.0,58748.0,0.69249625]
[1617326358681,0.6582258,58749.0,58748.0,0.79949625]
[1617326358913,0.6582258,58749.0,58748.0,0.80949625]
[1617326359111,0.6582258,58749.0,58748.0,0.691299]
[1617326359510,0.6582258,58749.0,58748.0,0.651299]
[1617326359710,0.6582258,58749.0,58748.0,0.691299]
[1617326360111,0.6582258,58749.0,58748.0,0.8495387]
[1617326360311,0.6582258,58749.0,58748.0,0.4202397]
[1617326361313,0.6582258,58749.0,58748.0,0.262]
[1617326363330,0.6582258,58749.0,58748.0,0.117]
[1617326363531,0.8817398,58749.0,58748.0,0.117]
[1617326364355,0.6582258,58749.0,58748.0,0.117]
[1617326364556,0.6582258,58749.0,58746.0,0.15826836]
[1617326364754,0.6582258,58749.0,58739.0,0.1320329]
[1617326364755,0.51978096,58748.0,58747.0,0.118]
[1617326364953,0.223514,58748.0,58747.0,0.118]
[1617326365154,1.313514,58748.0,58747.0,0.118]
[1617326365756,1.313514,58748.0,58741.0,0.15964806]
[1617326365956,0.223514,58744.0,58741.0,0.00135775]
[1617326366153,2.143514,58742.0,58741.0,0.00135775]
[1617326366356,2.157104,58742.0,58741.0,0.00135775]
[1617326366990,2.807168,58742.0,58741.0,0.00135775]
[1617326367188,3.367168,58742.0,58741.0,0.00135775]
[1617326367589,3.667168,58742.0,58741.0,0.00135775]
[1617326367987,3.667168,58742.0,58730.0,0.25105652]
[1617326368186,0.29549596,58741.0,58730.0,0.25105652]
[1617326368400,0.29549596,58741.0,58731.0,0.15857011]
[1617326368401,0.223514,58735.0,58731.0,0.15857011]
[1617326368601,0.16,58733.0,58730.0,0.15849737]
[1617326368804,2.049,58731.0,58730.0,0.15849737]
[1617326369000,2.272514,58731.0,58730.0,0.15849737]